Cogmind - Beta 13 @@@ ROGUE MODE // 2024.04.08 @ 15:19:46 Player: dohmmass Result: Destroyed by S-27 Virus with Autogun Performance ------------- Evolutions (3) 1500 Regions Visited (10) 2000 Robots Destroyed (81) 405 Value Destroyed (3150) 3150 Prototype IDs (12) 240 Alien Tech Used (0) 0 Bonus (994) 994 TOTAL SCORE: 8289 Bonus ------- High Alert Combat Kills 108 Entered Garrisons 400 Used RIF Installer 500 Friendly Fire -14 Cogmind --------- Core Integrity 0/700 Matter 300/300 Energy 100/100 System Corruption 0% Temperature Cool (35) Movement Core (100) Ox1 Location -7/Garrison Parts ------- > --- POWER (2) -------- (None) > --- PROPULSION (2) --- (None) > --- UTILITY (6) ------ Advanced Targeting Computer Improved Utility Shielding Advanced Hacking Suite Relay Coupler [Swarmer] (14) Improved Dynamic Insulation System > --- WEAPON (3) ------- (None) > --- INVENTORY (5) ---- Improved Heat Sink Improved Sensor Array Improved Signal Interpreter Advanced Targeting Computer Peak State ------------ > --- POWER ------------ Light Nuclear Core Light Nuclear Core > --- PROPULSION ------- Heavy Treads > --- UTILITY ---------- Advanced Cooling System Large Storage Unit Advanced Targeting Computer Improved Utility Shielding Gun Armor Advanced Hacking Suite > --- WEAPON ----------- Tesla Rifle Advanced Plasma Cannon Enhanced Gauss Cannon > --- INVENTORY -------- Compact Matter Pod Improved Sensor Array Improved Signal Interpreter Advanced Targeting Computer Improved Utility Shielding Hacking Suite Improved Dynamic Insulation System Advanced System Restoration Module [Rating: 67] Favorites ----------- Power Micro Nuclear Core Engine Subdweller Power Source Power Core Micro Nuclear Core Propulsion Heavy Treads Treads Heavy Treads Wheel Compact Wheel Utility Improved Utility Shielding Device Improved Dynamic Insulation System Storage Large Storage Unit Processor Advanced Targeting Computer Hackware Advanced Hacking Suite Protection Improved Utility Shielding Weapon Subdweller Laser Energy Gun Subdweller Laser Energy Cannon Plasma Cannon Ballistic Gun Assault Rifle Ballistic Cannon Enhanced Gauss Cannon Launcher Grenade Launcher Special Weapon Remote Datajack Slashing Weapon Greatsword Build | -11 -10 -10 -10 -8 -8 -8 -7 -7 -7 -7 ------- Run | Yrd Mat Min Sub Mat Gar Mat Fac Was Fac Gar Slots Evolved 6 | . . . . 4 . . 2 . . . Power 1 | . . . . . . . 1 . . . Propulsion . | . . . . . . . . . . . Utility 4 | . . . . 4 . . . . . . Weapon 1 | . . . . . . . 1 . . . Parts Attached 80 | 5 3 1 11 18 14 6 2 3 16 1 Power 10 | 1 . . 1 . 3 1 1 . 3 . Engine 4 | 1 . . 1 . 1 . . . 1 . Core 6 | . . . . . 2 1 1 . 2 . Reactor . | . . . . . . . . . . . Propulsion 12 | 2 1 . 1 3 3 . . . 2 . Treads 8 | . . . . 3 3 . . . 2 . Leg . | . . . . . . . . . . . Wheel 4 | 2 1 . 1 . . . . . . . Hover . | . . . . . . . . . . . Flight . | . . . . . . . . . . . Utility 28 | . 2 . 1 11 4 4 . 2 3 1 Device 8 | . 1 . 1 2 1 . . 1 2 . Storage 1 | . . . . . . 1 . . . . Processor 2 | . . . . 2 . . . . . . Hackware 3 | . . . . . 1 . . 1 . 1 Protection 14 | . 1 . . 7 2 3 . . 1 . Artifact . | . . . . . . . . . . . Weapon 30 | 2 . 1 8 4 4 1 1 1 8 . Energy Gun 12 | 1 . . 5 2 1 . 1 . 2 . Energy Cannon 3 | . . . . . . 1 . . 2 . Ballistic Gun 6 | 1 . . 2 1 2 . . . . . Ballistic Cannon 4 | . . . . . 1 . . 1 2 . Launcher 2 | . . . 1 1 . . . . . . Special Weapon 2 | . . 1 . . . . . . 1 . Impact Weapon . | . . . . . . . . . . . Slashing Weapon 1 | . . . . . . . . . 1 . Piercing Weapon . | . . . . . . . . . . . Special Melee Weapon . | . . . . . . . . . . . Unidentified Prototypes 2 | . . . . 1 . . . . 1 . Parts Lost 34 | . 1 . 6 2 10 2 . 4 2 7 Power 8 | . . . 1 . 2 1 . 1 1 2 Propulsion 4 | . 1 . 1 . 1 . . . . 1 Utility 9 | . . . 1 2 2 1 . 2 . 1 Weapon 13 | . . . 3 . 5 . . 1 1 3 Highest Loss Streak 7 | . 1 . 2 1 7 1 . 2 1 7 To Critical Strikes 1 | . . . 1 . . . . . . . Average Slot Usage (%) 85 | . 80 100 85 91 90 89 92 68 81 83 Engine 3 | . 14 14 3 8 2 . . . 3 . Core 4 | . . . . . 4 8 15 9 8 12 Treads 5 | . . . . 6 13 9 7 5 6 5 Wheel 9 | . 26 28 27 9 . . . . . . Device 8 | . . 14 10 7 10 9 7 6 6 7 Processor 5 | . . . . 6 8 9 7 7 7 7 Hackware 6 | . . . . . 1 9 7 8 15 15 Protection 18 | . 11 14 14 31 30 22 15 15 14 15 Energy Gun 8 | . 14 14 16 17 8 . 7 3 2 . Energy Cannon 2 | . . . . . . 8 7 1 3 12 Ballistic Gun 2 | . 14 7 3 1 4 . . . . . Ballistic Cannon 3 | . . . . . 3 9 7 5 3 . Launcher 2 | . . . 7 1 2 . . . . . Special Weapon 1 | . . 7 . . . . . . 5 5 Naked Turns . | . . . . . . . . . . . Heaviest Build 61 | 9 11 11 14 44 44 51 61 61 38 38 Greatest Support 70 | 26 26 26 36 44 70 70 70 70 70 70 Greatest Overweight (x) 10 | . . . . 1 . . . 1 1 10 Average Overweight (x) . | . . . . . . . . . . . Largest Inventory Capacity 15 | 5 5 5 5 5 5 15 15 15 5 5 Average Capacity 5 | 5 5 5 5 5 5 10 15 7 5 5 Most Carried 10 | 5 4 4 5 5 5 10 9 8 5 5 Average Carried 4 | 3 1 3 4 4 4 6 8 5 4 4 Final Capacity 15 | 5 5 5 5 5 5 15 15 5 5 5 Final Carried 10 | . 3 4 5 5 5 10 8 5 5 4 Class Distribution -------------------- 55% | Mutant 18% | Hacker-Gunner 10% | Hacker-Mutant 4% | Subdweller-Mutant 4% | Scavenger-Tank 3% | Scavenger-Mutant Dominant Class ---------------- Mutant | -10/Materials Mutant | -10/Mines Mutant | -10/Subcaves Subdweller-Mutant | -8/Materials Mutant | -8/Garrison Mutant | -8/Materials Gunner | -7/Factory Mutant | -7/Waste Hacker-Gunner | -7/Factory Hacker-Gunner | -7/Garrison Resources | -11 -10 -10 -10 -8 -8 -8 -7 -7 -7 -7 ----------- Run | Yrd Mat Min Sub Mat Gar Mat Fac Was Fac Gar Matter Collected 2355 | 200 152 13 349 198 231 718 . . 494 . Remotely . | . . . . . . . . . . . Salvage Created 3167 | . 403 20 269 534 376 783 . . 782 . Parts 163 | . 17 1 15 25 22 34 . . 49 . Haulers Intercepted 1 | . . . . 1 . . . . . . Recyclers Shooed 3 | . 1 . . . . 2 . . . . Parts Field Recycled . | . . . . . . . . . . . Retrieved Matter . | . . . . . . . . . . . Parts Self-Destructed 4 | . . . 4 . . . . . . . Prevented . | . . . . . . . . . . . Kills | -11 -10 -10 -10 -8 -8 -8 -7 -7 -7 -7 ------- Run | Yrd Mat Min Sub Mat Gar Mat Fac Was Fac Gar Combat Hostiles Destroyed 69 | . 7 . 7 8 15 17 . . 15 . Melee 1 | . . . . . . . . . 1 . Guns 31 | . 7 . 5 8 7 . . . 4 . Cannons 30 | . . . . . 3 17 . . 10 . AOE 7 | . . . 2 . 5 . . . . . Classes Destroyed 14 | . 3 1 1 4 2 1 . . 2 . Builder 2 | . . . . . . 2 . . . . Tunneler 1 | . . 1 . . . . . . . . Hauler 1 | . . . . 1 . . . . . . Recycler 2 | . 1 . . 1 . . . . . . Operator 1 | . . . . . . . . . 1 . Watcher 5 | . 2 . . . . 2 . . 1 . Swarmer 7 | . . . . . 7 . . . . . Grunt 34 | . 7 . . 5 5 11 . . 6 . Brawler 2 | . . . . 1 . 1 . . . . Sentry 11 | . . . . 1 1 5 . . 4 . Hunter 3 | . . . . 1 1 . . . 1 . Programmer 4 | . . . . . . . . . 4 . Behemoth 1 | . . . . . 1 . . . . . Subdweller 7 | . . . 7 . . . . . . . Best Kill Streak 8 | . 3 1 2 3 8 5 . . 3 . Combat Bots Only 8 | . 3 . 2 3 8 5 . . 3 . Max Kills in Single Turn 3 | . 1 1 1 1 3 1 . . 1 . Gunslinging . | . . . . . . . . . . . Exploded 2 | . . . 1 . 2 . . . . . Melee 1 | . . . . . . . . . 1 . Uniques/NPCs Destroyed . | . . . . . . . . . . . Combat | -11 -10 -10 -10 -8 -8 -8 -7 -7 -7 -7 -------- Run | Yrd Mat Min Sub Mat Gar Mat Fac Was Fac Gar Hostile Shots Fired 606 | . 29 . 33 38 165 69 . 10 152 110 Missed 182 | . 8 . 16 10 47 26 . 1 54 20 Damage Taken 6496 | . 291 . 456 442 1737 645 . 426 1120 1379 Core 1317 | . 96 . 150 34 250 74 . 115 134 464 Absorbed by Shields . | . . . . . . . . . . . Reduced by Siege Mode 189 | . . . . . . 95 . . 44 50 Redirected to Shielding 125 | . 22 . 2 . 14 19 . 33 26 9 Ignored by Resistances 105 | . . . . 8 87 10 . . . . Regen/Repaired (Parts) 484 | . . . . . . . . . 484 . Core Remaining (%) 45 | 100 . . 1 . . 34 . . . . Volleys Fired 291 | . 29 4 48 26 53 51 . 11 62 7 Largest 4 | . 2 2 2 3 4 2 . 2 2 2 Hottest 184 | . 70 150 165 148 184 155 . 122 160 160 Shots Fired 502 | . 57 8 89 53 87 91 . 14 93 10 Gun 277 | . 57 5 61 53 70 . . 4 27 . Cannon 174 | . . . . . 6 91 . 10 61 6 Launcher 35 | . . . 24 . 11 . . . . . Special 16 | . . 3 4 . . . . . 5 4 Kinetic 189 | . 29 1 9 2 58 50 . 7 33 . Thermal 238 | . 28 7 56 51 18 41 . 3 28 6 Explosive 35 | . . . 24 . 11 . . . . . Electromagnetic 31 | . . . . . . . . 4 27 . Robot Hit Streak 18 | . 15 7 17 18 13 9 . . 17 18 Robot Miss Streak 4 | . 3 . 1 3 3 4 . 2 2 1 Penetration Max 1 | . . . . . 1 1 . . . . Secondary Targets 1 | . . . . 1 . . . . . . Max Gunslinging Chain 1 | . . . . 1 . . . . . . Shots Hit Robots 304 | . 41 2 31 36 64 53 . . 69 8 Core Hits 134 | . 21 1 14 17 31 20 . . 29 1 Critical Kills . | . . . . . . . . . . . Critical Parts Destroyed 1 | . . . . . 1 . . . . . Critical Strikes 11 | . 3 . 1 1 1 4 . . 1 . Burn 4 | . 3 . 1 . . . . . . . Destroy 2 | . . . . 1 1 . . . . . Blast 5 | . . . . . . 4 . . 1 . Melee Attacks 10 | . . . . . . . . . 10 . Impact . | . . . . . . . . . . . Slashing 10 | . . . . . . . . . 10 . Piercing . | . . . . . . . . . . . Sneak Attacks . | . . . . . . . . . . . Combat Hostiles . | . . . . . . . . . . . Follow-up Attacks . | . . . . . . . . . . . Damage Inflicted 7394 | . 554 23 709 777 1556 1961 . . 1670 144 Guns 2923 | . 554 23 413 772 793 . . . 368 . Cannons 3406 | . . . . . 105 1961 . . 1196 144 Explosions 954 | . . . 296 . 658 . . . . . Melee 106 | . . . . . . . . . 106 . Ramming 5 | . . . . 5 . . . . . . Kinetic 2942 | . 250 11 136 18 698 1132 . . 697 . Thermal 3019 | . 304 12 277 754 200 829 . . 499 144 Explosive 954 | . . . 296 . 658 . . . . . Electromagnetic 368 | . . . . . . . . . 368 . Impact . | . . . . . . . . . . . Slashing 106 | . . . . . . . . . 106 . Piercing . | . . . . . . . . . . . Highest Corruption 2 | . . . . 2 2 2 . . . . Average Corruption 2 | . . . . 2 2 2 . . . . Corruption Purged . | . . . . . . . . . . . Corruption Blocked . | . . . . . . . . . . . Effects 28 | . . . . 7 11 10 . . . . Message Errors 3 | . . . . . 2 1 . . . . Matter Fused 10 | . . . . 3 3 4 . . . . Heat Flow Errors 5 | . . . . 2 2 1 . . . . Energy Discharges 3 | . . . . 1 2 . . . . . Parts Fused 1 | . . . . . . 1 . . . . Data Loss (minor) 2 | . . . . . 1 1 . . . . Data Loss (major) 3 | . . . . . 1 2 . . . . Weapon Failures 1 | . . . . 1 . . . . . . Overload Shots . | . . . . . . . . . . . Overflow Damage 114 | . . . 2 . 15 26 . . 59 12 Projectiles 93 | . . . . . . 26 . . 55 12 Explosions 17 | . . . 2 . 15 . . . . . Melee 4 | . . . . . . . . . 4 . Knockbacks 18 | . . . . . . 11 . . 7 . Impact . | . . . . . . . . . . . Kinetic 17 | . . . . . . 10 . . 7 . Secondary 1 | . . . . . . 1 . . . . Self-Inflicted Damage 98 | . . . 63 . 35 . . . . . Shots 9 | . . . 8 . 1 . . . . . Rammed 1 | . . . . 1 . . . . . . Targets Rammed 1 | . . . . 1 . . . . . . Kicked . | . . . . . . . . . . . Crushed . | . . . . . . . . . . . Highest Temperature 516 | . 144 . . 516 249 275 . 44 436 419 Average Temperature 121 | . 53 . . 175 54 41 . 10 147 251 Received Heat Transfer 2232 | . 159 . 78 234 624 396 . . 342 399 Effects 26 | . . . . 8 . . . . 15 3 Shutdowns 7 | . . . . 2 . . . . 3 2 Energy Bleed 6 | . . . . 3 . . . . 3 . Interference 5 | . . . . 1 . . . . 4 . Matter Decay 2 | . . . . . . . . . 2 . Short Circuit 2 | . . . . 2 . . . . . . Damage (minor) 2 | . . . . . . . . . 1 1 Damage (major) 2 | . . . . . . . . . 2 . Siege Activations 9 | . . . . . . 3 . . 5 1 Total Turns 148 | . . . . . . 68 . . 66 14 Longest Duration 41 | . . . . . . 41 . . 25 14 Robots Corrupted . | . . . . . . . . . . . Combat Hostiles . | . . . . . . . . . . . Parts Fried 1 | . . . . . . . . . 1 . Impact Corruptions . | . . . . . . . . . . . Robots Melted . | . . . . . . . . . . . Combat Hostiles . | . . . . . . . . . . . Parts Melted 9 | . 3 . 2 . . 1 . . 3 . Heat Transferred 5354 | . 1110 37 558 925 274 1250 . . 950 250 Parts Sabotaged . | . . . . . . . . . . . Parts Stolen . | . . . . . . . . . . . Parts Stripped . | . . . . . . . . . . . Power Chain Reactions . | . . . . . . . . . . . Alert | -11 -10 -10 -10 -8 -8 -8 -7 -7 -7 -7 ------- Run | Yrd Mat Min Sub Mat Gar Mat Fac Was Fac Gar Peak Influence 594 | . 196 81 . 224 305 594 270 96 220 150 Initial 270 | . . 76 . . 29 148 270 94 51 110 Average 156 | . 77 79 . 97 188 370 270 84 95 108 Maximum Alert Level 2 | . . . . 1 1 2 1 . 1 . Low Security (%) 74 | 100 100 100 . 86 46 16 . 100 99 100 Level 1 17 | . . . . 13 53 35 100 . . . Level 2 8 | . . . . . . 48 . . . . Level 3 . | . . . . . . . . . . . Level 4 . | . . . . . . . . . . . Level 5 . | . . . . . . . . . . . High Security . | . . . . . . . . . . . Max Security . | . . . . . . . . . . . Squads Dispatched 11 | . 2 . . . . 5 . . 4 . Investigation 3 | . . . . . . 2 . . 1 . Extermination 2 | . . . . . . . . . 2 . Reinforcement 6 | . 2 . . . . 3 . . 1 . Assault . | . . . . . . . . . . . Garrison . | . . . . . . . . . . . Intercept . | . . . . . . . . . . . Searches Triggered . | . . . . . . . . . . . Construction Impeded 1 | . . . . . . 1 . . . . Haulers Reinforced . | . . . . . . . . . . . Active Scanning Responses . | . . . . . . . . . . . Cargo Convoy Interrupts . | . . . . . . . . . . . Stealth | -11 -10 -10 -10 -8 -8 -8 -7 -7 -7 -7 --------- Run | Yrd Mat Min Sub Mat Gar Mat Fac Was Fac Gar Distress Signals 8 | . 1 . . 3 . 3 . . 1 . Communications Jammed . | . . . . . . . . . . . Distress Signals . | . . . . . . . . . . . Times Spotted 113 | . 10 . 6 13 16 25 . 7 21 15 Peak Tracking Total 14 | . 5 . 2 3 10 6 . 6 4 14 Tactical Retreats 4 | . . . . . . 1 . 1 1 1 Traps | -11 -10 -10 -10 -8 -8 -8 -7 -7 -7 -7 ------- Run | Yrd Mat Min Sub Mat Gar Mat Fac Was Fac Gar Traps Triggered 6 | . . . . . 4 . 1 . 1 . Indirectly . | . . . . . . . . . . . Trap Hack Attempts . | . . . . . . . . . . . Triggered . | . . . . . . . . . . . Disarmed . | . . . . . . . . . . . Reprogrammed . | . . . . . . . . . . . Reused . | . . . . . . . . . . . Traps Extracted . | . . . . . . . . . . . Installed . | . . . . . . . . . . . Triggered 1 | . . . . . . . . . 1 . Machines | -11 -10 -10 -10 -8 -8 -8 -7 -7 -7 -7 ---------- Run | Yrd Mat Min Sub Mat Gar Mat Fac Was Fac Gar Machines Disabled 5 | . . . 2 . . 3 . . . . Max in Single Turn 2 | . . . 2 . . 1 . . . . Garrison Access 1 | . . . . . . . . . 1 . Machines Repaired . | . . . . . . . . . . . Machines Dismantled . | . . . . . . . . . . . Machines Sabotaged . | . . . . . . . . . . . Overloaded Fab Kills . | . . . . . . . . . . . Hacking | -11 -10 -10 -10 -8 -8 -8 -7 -7 -7 -7 --------- Run | Yrd Mat Min Sub Mat Gar Mat Fac Was Fac Gar Machines Accessed 11 | . . . 2 1 1 2 . . 5 . Terminals 4 | . . . . . 1 2 . . 1 . Fabricators 1 | . . . . . . . . . 1 . Repair Stations 1 | . . . . . . . . . 1 . Recycling Units . | . . . . . . . . . . . Scanalyzers . | . . . . . . . . . . . Garrison Access 3 | . . . . 1 . . . . 2 . Total Hacks 33 | . . . 13 2 1 8 . . 9 . Successful 26 | . . . 13 1 1 3 . . 8 . Failed 7 | . . . . 1 . 5 . . 1 . Catastrophic 1 | . . . . . . 1 . . . . Database Lockouts . | . . . . . . . . . . . Manual . | . . . . . . . . . . . Terminals 12 | . . . . . 1 8 . . 3 . Fabricators 1 | . . . . . . . . . 1 . Repair Stations 2 | . . . . . . . . . 2 . Recycling Units . | . . . . . . . . . . . Scanalyzers . | . . . . . . . . . . . Garrison Access 5 | . . . . 2 . . . . 3 . Terminal Hacks 19 | . . . 13 . 1 3 . . 2 . Record 13 | . . . 12 . . . . . 1 . Robot Analysis 2 | . . . . . . 2 . . . . Terminal Index 2 | . . . . . . 1 . . 1 . Patrol Navigation 1 | . . . . . 1 . . . . . Derelict Proto ID Bank 1 | . . . 1 . . . . . . . Fabricator Hacks 1 | . . . . . . . . . 1 . Network Status 1 | . . . . . . . . . 1 . Repair Station Hacks 2 | . . . . . . . . . 2 . Scan Component 1 | . . . . . . . . . 1 . Repair 1 | . . . . . . . . . 1 . Recycling Unit Hacks . | . . . . . . . . . . . Scanalyzer . | . . . . . . . . . . . Garrison Access Hacks 4 | . . . . 1 . . . . 3 . Unlock Access 2 | . . . . 1 . . . . 1 . Seal Access 1 | . . . . . . . . . 1 . Coupler Status 1 | . . . . . . . . . 1 . Unauthorized Hacks . | . . . . . . . . . . . Terminals . | . . . . . . . . . . . Fabricators . | . . . . . . . . . . . Repair Stations . | . . . . . . . . . . . Recycling Units . | . . . . . . . . . . . Scanalyzers . | . . . . . . . . . . . Garrison Access . | . . . . . . . . . . . Data Cores Recovered . | . . . . . . . . . . . Used . | . . . . . . . . . . . Hacking Detections 6 | . . . . . . 2 . . 4 . Full Trace Events 3 | . . . . . . 2 . . 1 . Feedback Events . | . . . . . . . . . . . Feedback Blocked . | . . . . . . . . . . . Robot Schematics Acquired . | . . . . . . . . . . . Robots Built . | . . . . . . . . . . . Authchips . | . . . . . . . . . . . Time . | . . . . . . . . . . . Total Robot Build Rating . | . . . . . . . . . . . Part Schematics Acquired . | . . . . . . . . . . . Parts Built . | . . . . . . . . . . . Authchips . | . . . . . . . . . . . Time . | . . . . . . . . . . . Total Part Build Rating . | . . . . . . . . . . . Parts Repaired 1 | . . . . . . . . . 1 . Time 56 | . . . . . . . . . 56 . Parts Recycled . | . . . . . . . . . . . Recycled Matter . | . . . . . . . . . . . Retrieved Matter . | . . . . . . . . . . . Retrieved Components . | . . . . . . . . . . . Parts Scanalyzed . | . . . . . . . . . . . Part Schematics Acquired . | . . . . . . . . . . . Parts Damaged . | . . . . . . . . . . . Bothacking | -11 -10 -10 -10 -8 -8 -8 -7 -7 -7 -7 ------------ Run | Yrd Mat Min Sub Mat Gar Mat Fac Was Fac Gar Used RIF Installer 1 | . . . . . 1 . . . . . Robots Hacked 3 | . . . . . . . . . 1 2 Non-combat . | . . . . . . . . . . . Combat 3 | . . . . . . . . . 1 2 Robot Hacks Applied 3 | . . . . . . . . . 1 2 parse_system 1 | . . . . . . . . . 1 . overwrite_iff 2 | . . . . . . . . . . 2 Relay Couplers Released 2 | . . . . . . . . . 2 . Machine Destruction 2 | . . . . . . . . . 2 . Attached 1 | . . . . . . . . . . 1 Fabnet Peak Effective % . | . . . . . . . . . . . Robots Rewired . | . . . . . . . . . . . Allies Hacked 1 | . . . . . . . . . . 1 Hacks Repelled . | . . . . . . . . . . . Allies | -11 -10 -10 -10 -8 -8 -8 -7 -7 -7 -7 -------- Run | Yrd Mat Min Sub Mat Gar Mat Fac Was Fac Gar Total Allies 2 | . . . . . . . . . . 2 Largest Group 2 | . . . . . . . . . . 2 Highest-Rated Group 24 | . . . . . . . . . . 24 Highest-Rated Ally 12 | . . . . . . . . . . 12 Total Orders . | . . . . . . . . . . . Ally Attacks 5 | . . . . . . . . . . 5 Total Damage 61 | . . . . . . . . . . 61 Kills . | . . . . . . . . . . . Allies Corrupted . | . . . . . . . . . . . Allies Melted . | . . . . . . . . . . . Intel | -11 -10 -10 -10 -8 -8 -8 -7 -7 -7 -7 ------- Run | Yrd Mat Min Sub Mat Gar Mat Fac Was Fac Gar Robot Analysis Total 2 | . . . . . . 2 . . . . Derelict Logs Recovered 3 | . . . 3 . . . . . . . Drone Launches . | . . . . . . . . . . . Drone Recoveries . | . . . . . . . . . . . Exploration | -11 -10 -10 -10 -8 -8 -8 -7 -7 -7 -7 ------------- Run | Yrd Mat Min Sub Mat Gar Mat Fac Was Fac Gar Turns Passed 4993 | 31 267 34 1211 495 579 656 39 223 1353 105 Spaces Moved 3020 | 38 160 15 1118 259 271 283 24 124 677 51 Core 211 | 33 . . . . . . . 50 116 12 Treads 1362 | . . . . 110 271 283 24 74 561 39 Legs . | . . . . . . . . . . . Wheels 1447 | 5 160 15 1118 149 . . . . . . Hover . | . . . . . . . . . . . Flight . | . . . . . . . . . . . Fastest Speed 50 | 50 80 90 90 105 145 160 160 100 100 150 Average Speed 123 | 55 88 90 92 135 152 160 160 135 149 165 Slowest Speed 550 | 90 90 90 105 225 160 160 160 160 160 550 Overloaded Moves . | . . . . . . . . . . . Propulsion Burnouts . | . . . . . . . . . . . Robots Hopped . | . . . . . . . . . . . Cave-ins Triggered . | . . . . . . . . . . . Exploration Rate (%) 29 | 3 38 9 71 27 33 28 1 73 23 14 Regions Visited 10 Branch Regions 2 Pre-discovered Areas 2 | . . . 2 . . . . . . . Known Exits Taken 2 | . . . . 1 . . . . 1 . Unknown Exits Taken 5 | 1 1 1 1 . . 1 . . . . Scrap Searched 2 | . . . 2 . . . . . . . Spaces Dug 32 | . . . 19 . . 1 . 9 3 . Terrain Destroyed 248 | . . . 144 . 52 38 . 10 4 . Melee . | . . . . . . . . . . . Projectile 53 | . . . . . 1 38 . 10 4 . AOE 195 | . . . 144 . 51 . . . . . Terrain Rammed . | . . . . . . . . . . . Walls Destroyed . | . . . . . . . . . . . Machines Disabled . | . . . . . . . . . . . Actions | -11 -10 -10 -10 -8 -8 -8 -7 -7 -7 -7 --------- Run | Yrd Mat Min Sub Mat Gar Mat Fac Was Fac Gar Total 3767 | 47 227 20 1200 348 364 394 26 165 913 63 Wait 255 | . 30 . 9 22 6 46 . 25 113 4 Move 3013 | 37 159 14 1117 259 270 282 24 123 677 51 Hop . | . . . . . . . . . . . Pick Up 84 | 5 6 1 10 16 14 8 . 1 23 . Fast Attach . | . . . . . . . . . . . Attach 56 | 5 3 . 6 11 9 2 2 3 15 . Detach 1 | . . . . . . . . 1 . . Swap 24 | . . 1 5 7 5 4 . . 1 1 Drop 32 | . . . 5 6 7 1 . 1 12 . Fire 291 | . 29 4 48 26 53 51 . 11 62 7 Melee 10 | . . . . . . . . . 10 . Ram . | . . . . . . . . . . . Kick . | . . . . . . . . . . . Crush 1 | . . . . 1 . . . . . . Escape Stasis . | . . . . . . . . . . . Rewire . | . . . . . . . . . . . Trap . | . . . . . . . . . . . Miscellaneous . | . . . . . . . . . . . Route ------- -11/Scrapyard -10/Materials -10/Mines -10/Subcaves -8/Materials (discovered 2 exits: [*Fac] / Gar) -8/Garrison -8/Materials -7/Factory -7/Waste -7/Factory (discovered 2 exits: [*Low] / Gar) -7/Garrison History --------- Turn | Location | Event 14 | -11/Scrapyard | Discovered new exit (range 15) 32 | -11/Scrapyard | Entered Materials 269 | -10/Materials | Discovered new exit (range 10) 299 | -10/Materials | Entered Mines 313 | -10/Mines | Build established: Mutant 331 | -10/Mines | Discovered new exit (range 3) 333 | -10/Mines | Entered Subcaves 387 | -10/Subcaves | Core integrity fell below 50% 469 | -10/Subcaves | Learned location of Zion (-7) 508 | -10/Subcaves | Visited 4L-MR0's lab 590 | -10/Subcaves | Found Gun Armor 647 | -10/Subcaves | Met a Zionite searching for "candidates" 753 | -10/Subcaves | A swath of the cavern ceiling suddenly collapsed 835 | -10/Subcaves | Learned Materials terminal intel 886 | -10/Subcaves | Visited Clippyterm 1043 | -10/Subcaves | Core integrity fell below 20% 1238 | -10/Subcaves | Discovered new exit (range 20) 1496 | -10/Subcaves | Shifting Twisted Machinery released Sub. Power Source 1506 | -10/Subcaves | Shifting Twisted Machinery released Sub. Laser 1522 | -10/Subcaves | A swath of the cavern ceiling suddenly collapsed 1544 | -10/Subcaves | Entered Materials 1544 | -8/Materials | Evolved 4 slots: Utility x4 1545 | -8/Materials | Loaded intel: 12 terminal locations 1793 | -8/Materials | Discovered new exit (range 15) 1949 | -8/Materials | Attached Gun Armor, gained temporary slots: Weapon x2 2039 | -8/Materials | Identified exit to Garrison 2039 | -8/Materials | Entered Garrison 2095 | -8/Garrison | Installed Relay Interface Framework 2142 | -8/Garrison | Spotted B-75 Beast 2173 | -8/Garrison | Destroyed B-75 Beast 2199 | -8/Garrison | Lost 3 parts (1p1u1w) 2204 | -8/Garrison | Triggered checkpoint 2222 | -8/Garrison | Triggered checkpoint 2271 | -8/Garrison | Destroyed 8 combat bots 2316 | -8/Garrison | Lost 7 parts (1p1n1u4w) 2385 | -8/Garrison | Core integrity fell below 50% 2519 | -8/Garrison | Discovered new exit (range 15) 2618 | -8/Garrison | Entered Materials 3150 | -8/Materials | Discovered new exit (range 5) 3274 | -8/Materials | Entered Factory 3274 | -7/Factory | Evolved 2 slots: Power x1, Weapon x1 3275 | -7/Factory | Identified exit to Storage 3313 | -7/Factory | Sucked down chute 3313 | -7/Factory | Entered Waste 3340 | -7/Waste | Spotted C-40 Crusher 3366 | -7/Waste | Crushed by Compactor (1 part destroyed, 1 dropped) 3402 | -7/Waste | Spotted C-40 Crusher 3402 | -7/Waste | Spotted C-40 Crusher 3415 | -7/Waste | Crushed by Compactor (0 parts destroyed, 2 dropped) 3421 | -7/Waste | Crushed by Compactor (1 part destroyed, 1 dropped) 3456 | -7/Waste | Spotted C-40 Crusher 3456 | -7/Waste | Spotted C-40 Crusher 3468 | -7/Waste | Spotted C-40 Crusher 3481 | -7/Waste | Crushed by Compactor (1 part destroyed) 3522 | -7/Waste | Discovered new exit (range 11) 3536 | -7/Waste | Entered Factory 3779 | -7/Factory | Build established: Hacker-Mutant 3836 | -7/Factory | Repaired Hvy. Treads 4027 | -7/Factory | Discovered new exit (range 16) 4202 | -7/Factory | Build established: Hacker-Gunner 4889 | -7/Factory | Identified exit to Garrison 4889 | -7/Factory | Entered Garrison 4946 | -7/Garrison | Triggered checkpoint 4982 | -7/Garrison | Core integrity fell below 50% 4989 | -7/Garrison | Core integrity fell below 20% 4994 | -7/Garrison | Destroyed by S-27 Virus with Autogun Last Messages --------------- 04966_ S-27 Virus destroyed. 04967_ G-47 Trooper heat short circuits Aluminum Leg. 04970_ Overheating: Mic. Nuclear Core damaged (-10). 04971_ G-47 Trooper heat damages Unknown Energy Gun. 04972_ Power failure, Mic. Nuclear Core shutdown. 04972_ Hvy. Treads destroyed. 04972_ Mic. Nuclear Core destroyed. 04974_ Remote Datajack destroyed. 04975_ Critical hit (Burn: +37). 04976_ Power failure, Mic. Nuclear Core shutdown. 04976_ Plasma Cannon destroyed. 04977_ Mic. Nuclear Core destroyed. 04977_ G-47 Trooper destroyed. 04978_ Plasma Cannon destroyed. 04993_ Gun Armor destroyed. Map ----- +----------------------------------------------------+ | ?????????????????????????????????????????????????? | | ?????????????????????????????????????????????????? | | ?????????????????????????????????????????????????? | | ?????????????????????????????????????????????????? | | ?????????????????????????????????????????????????? | | ?????????????????????????????????????????????????? | | ?????????????????????????????????????????????????? | | ?????????????????????????????????????????????????? | | ?????????????????????????????????????????????????? | | ?????????????????????????? ?????????????????????? | | ?????????????????????????# ?????????????????????? | | ?????????????????????????# ?????????????????????? | | ?????????????????????????# ?????????????????????? | | ?????????????????###"???## ##???????????????????? | | ????????????????? ?? #???????????????????? | | ????????????????? ?? ???????????""""????? | | ?????????????????? ?? ??????????????"????? | | ??????????????# ???# ?# #???????????""""????? | | ??????????????# ## ## ###?????????????????? | | ??????????????" #?????????????????? | | ??????????????" #?????????????????? | | ??????????????? #?????????????????? | | ????????????????? ??????????????????? | | ???????????????????# ??# ####????????????????? | | ?????????????## ## ## g s=;##########???????? | | ?????????? @g s%*% #???????? | | ?????????? g%ss[ #???????? | | ?????????????## g[=;#+##### #???????? | | ??????????????## ## ###### ## #???# #???????? | | ???????????????????# ?????###? #???# #???????? | | ???????????????????####?????????? #???# #???????? | | ??????????????????????????????????#???# #???????? | | ??????????????????????????????????????# #???????? | | ??????????????????????????????????????# #???????? | | ??????????????????????????????????????# #???????? | | ??????????????????????????????????????# ######### | | ??????????????????????????????????????# | | ?????????????????????????????????###### | | ?????????????????????????????????# ^ ######### | | ?????????????????????????????????# #######???????# | | ?????????????????????????????????????????????????# | | ?????????????????????????????????????????????????? | | ?????????????????????????????????????????????????? | | ?????????????????????????????????????????????????? | | ?????????????????????????????????????????????????? | | ?????????????????????????????????????????????????? | | ?????????????????????????????????????????????????? | | ?????????????????????????????????????????????????? | | ?????????????????????????????????????????????????? | | ?????????????????????????????????????????????????? | +----------------------------------------------------+ Best States ------------- Heat Dissipation 65 Energy Generation 28 Energy Capacity 360 Matter Stores 300 Matter Capacity 300 Sight Range 21 Robot Scan Range 15 Terrain Scan Density 10 EM Shielding 3 Armor Coverage 900 Resistance: KI 10 Power Shielding 33 Utility Shielding 66 Evasion (%) 50 Targeting Accuracy 8 Recoil Reduction 2 Kinecelleration 30 Offensive Hacking 24 Relay Coupler Types 1 Relay Coupler Value 14 Item Schematics ----------------- None Robot Schematics ------------------ None Fabricated ------------ Nothing Alien Tech Used ----------------- None Achievements -------------- None Challenges ------------ None Game ------ Seed RecyclingTransmissionFilter Manual? 0 Play Time 00:58:17 Cumulative 28.1 hours Start 2024.04.08 @ 14:17:16 End 2024.04.08 @ 15:19:46 Sessions 1 Manual Loads 0 Difficulty Rogue Special Mode None Game No. 58 Rogue 58 Adventurer 0 Explorer 0 Win Type - Total 0 Types 0/0/0/0/0/0/0/0/0 Lore% 17 Gallery% 33 Achievement% 22 Wizard Run 0 Options --------- Layout 1 ASCII 0 Keyboard 0 Movement Mouse Keybinds 0 Fullscreen 1 Font 24/Smallcaps Map View 50x35 Zoom Use 0% Tactical HUD 1 Map Filters NONE Filters NONE Steam 1 RUN: 33f3f53e-8f8a-4c53-a23a-a6c47a09cd53